Workbook

Sheet Januar
A1: JANUAR
A2: Onlineverkäufe | C2: Auktions-ID | D2: Artikelbeschreibung | E2: Kaufpreis | F2: Verkaufspreis | G2: Onlinegebühren | H2: PayPal-Gebühren | I2: Kreditkartengebühren | J2: Versandkosten | K2: Versandgebühren | L2: Verkäufe Gewinn/Verlust | M2: Versand Gewinn/Verlust | N2: Gesamt Gewinn/Verlust
A3: Jahr | C3: TS001 | D3: Artikel 1 | E3: 5.00 € | F3: 4.00 € | G3: 2.00 € | H3: 1.50 € | I3: 0.00 € | J3: 4.00 € | K3: 2.00 € | L3: =IFERROR(UmsätzeJanuar[Verkaufspreis]-(UmsätzeJanuar[Kaufpreis]+UmsätzeJanuar[Onlinegebühren]+UmsätzeJanuar[PayPal-Gebühren]+UmsätzeJanuar[Kreditkartengebühren]),"") -> -4.50 € | M3: =UmsätzeJanuar[Versandkosten]-UmsätzeJanuar[Versandgebühren] -> 2.00 € | N3: =UmsätzeJanuar[Verkäufe Gewinn/Verlust]+UmsätzeJanuar[Versand Gewinn/Verlust] -> -2.50 €
A4: 2012 | C4: TP004 | D4: Artikel 2 | E4: 2.00 € | F4: 30.00 € | G4: 0.50 € | H4: 0.50 € | J4: 4.00 € | K4: 5.50 € | L4: =IFERROR(UmsätzeJanuar[Verkaufspreis]-(UmsätzeJanuar[Kaufpreis]+UmsätzeJanuar[Onlinegebühren]+UmsätzeJanuar[PayPal-Gebühren]+UmsätzeJanuar[Kreditkartengebühren]),"") -> 27.00 € | M4: =UmsätzeJanuar[Versandkosten]-UmsätzeJanuar[Versandgebühren] -> -1.50 € | N4: =UmsätzeJanuar[Verkäufe Gewinn/Verlust]+UmsätzeJanuar[Versand Gewinn/Verlust] -> 25.50 €
C5: RS99 | D5: Artikel 3 | E5: 17.00 € | F5: 23.00 € | G5: 2.00 € | I5: 2.00 € | J5: 3.00 € | K5: 2.00 € | L5: =IFERROR(UmsätzeJanuar[Verkaufspreis]-(UmsätzeJanuar[Kaufpreis]+UmsätzeJanuar[Onlinegebühren]+UmsätzeJanuar[PayPal-Gebühren]+UmsätzeJanuar[Kreditkartengebühren]),"") -> 2.00 € | M5: =UmsätzeJanuar[Versandkosten]-UmsätzeJanuar[Versandgebühren] -> 1.00 € | N5: =UmsätzeJanuar[Verkäufe Gewinn/Verlust]+UmsätzeJanuar[Versand Gewinn/Verlust] -> 3.00 €
A6: Gesamt Gewinn/Verlust | C6: ST001 | D6: Artikel 4 | E6: 120.00 € | F6: 180.00 € | G6: 2.00 € | H6: 1.50 € | J6: 3.00 € | K6: 2.00 € | L6: =IFERROR(UmsätzeJanuar[Verkaufspreis]-(UmsätzeJanuar[Kaufpreis]+UmsätzeJanuar[Onlinegebühren]+UmsätzeJanuar[PayPal-Gebühren]+UmsätzeJanuar[Kreditkartengebühren]),"") -> 56.50 € | M6: =UmsätzeJanuar[Versandkosten]-UmsätzeJanuar[Versandgebühren] -> 1.00 € | N6: =UmsätzeJanuar[Verkäufe Gewinn/Verlust]+UmsätzeJanuar[Versand Gewinn/Verlust] -> 57.50 €
A7: =UmsätzeJanuar[[#Totals],[Gesamt Gewinn/Verlust]] -> 89.00 € | C7: ST001 | D7: Artikel 5 | E7: 10.00 € | F7: 12.00 € | G7: 2.00 € | H7: 1.50 € | J7: 14.00 € | K7: 7.00 € | L7: =IFERROR(UmsätzeJanuar[Verkaufspreis]-(UmsätzeJanuar[Kaufpreis]+UmsätzeJanuar[Onlinegebühren]+UmsätzeJanuar[PayPal-Gebühren]+UmsätzeJanuar[Kreditkartengebühren]),"") -> -1.50 € | M7: =UmsätzeJanuar[Versandkosten]-UmsätzeJanuar[Versandgebühren] -> 7.00 € | N7: =UmsätzeJanuar[Verkäufe Gewinn/Verlust]+UmsätzeJanuar[Versand Gewinn/Verlust] -> 5.50 €
C8: Summe | D8: ="Verkaufte Artikel: "&SUBTOTAL(103,UmsätzeJanuar[Artikelbeschreibung]) -> Verkaufte Artikel: 5 | E8: =SUBTOTAL(109,UmsätzeJanuar[Kaufpreis]) -> 154.00 € | F8: =SUBTOTAL(109,UmsätzeJanuar[Verkaufspreis]) -> 249.00 € | G8: =SUBTOTAL(109,UmsätzeJanuar[Onlinegebühren]) -> 8.50 € | H8: =SUBTOTAL(109,UmsätzeJanuar[PayPal-Gebühren]) -> 5.00 € | I8: =SUBTOTAL(109,UmsätzeJanuar[Kreditkartengebühren]) -> 2.00 € | J8: =SUBTOTAL(109,UmsätzeJanuar[Versandkosten]) -> 28.00 € | K8: =SUBTOTAL(109,UmsätzeJanuar[Versandgebühren]) -> 18.50 € | L8: =SUBTOTAL(109,UmsätzeJanuar[Verkäufe Gewinn/Verlust]) -> 79.50 € | M8: =SUBTOTAL(109,UmsätzeJanuar[Versand Gewinn/Verlust]) -> 9.50 € | N8: =SUBTOTAL(109,UmsätzeJanuar[Gesamt Gewinn/Verlust]) -> 89.00 €
A9: Gewinn/Verlust Trend

Sheet Februar
A1: FEBRUAR
A2: Onlineverkäufe | C2: Auktions-ID | D2: Artikelbeschreibung | E2: Kaufpreis | F2: Verkaufspreis | G2: Onlinegebühren | H2: PayPal-Gebühren | I2: Kreditkartengebühren | J2: Versandkosten | K2: Versandgebühren | L2: Verkäufe Gewinn/Verlust | M2: Versand Gewinn/Verlust | N2: Gesamt Gewinn/Verlust
A3: Jahr | C3: TS020 | D3: Artikel 1 | E3: 10.00 € | F3: 175.00 € | G3: 3.00 € | H3: 1.50 € | I3: 0.00 € | J3: 7.00 € | K3: 5.00 € | L3: =IFERROR(UmsätzeFebruar[Verkaufspreis]-(UmsätzeFebruar[Kaufpreis]+UmsätzeFebruar[Onlinegebühren]+UmsätzeFebruar[PayPal-Gebühren]+UmsätzeFebruar[Kreditkartengebühren]),"") -> 160.50 € | M3: =UmsätzeFebruar[Versandkosten]-UmsätzeFebruar[Versandgebühren] -> 2.00 € | N3: =UmsätzeFebruar[Verkäufe Gewinn/Verlust]+UmsätzeFebruar[Versand Gewinn/Verlust] -> 162.50 €
A4: =UmsätzeJahr -> 2012 | C4: TS021 | D4: Artikel 2 | E4: 32.00 € | F4: 100.00 € | G4: 3.00 € | I4: 3.20 € | J4: 20.00 € | K4: 13.00 € | L4: =IFERROR(UmsätzeFebruar[Verkaufspreis]-(UmsätzeFebruar[Kaufpreis]+UmsätzeFebruar[Onlinegebühren]+UmsätzeFebruar[PayPal-Gebühren]+UmsätzeFebruar[Kreditkartengebühren]),"") -> 61.80 € | M4: =UmsätzeFebruar[Versandkosten]-UmsätzeFebruar[Versandgebühren] -> 7.00 € | N4: =UmsätzeFebruar[Verkäufe Gewinn/Verlust]+UmsätzeFebruar[Versand Gewinn/Verlust] -> 68.80 €
C5: TS022 | D5: Artikel 3 | E5: 3.00 € | F5: 7.00 € | G5: 2.00 € | I5: 2.00 € | J5: 0.50 € | K5: 1.20 € | L5: =IFERROR(UmsätzeFebruar[Verkaufspreis]-(UmsätzeFebruar[Kaufpreis]+UmsätzeFebruar[Onlinegebühren]+UmsätzeFebruar[PayPal-Gebühren]+UmsätzeFebruar[Kreditkartengebühren]),"") -> 0.00 € | M5: =UmsätzeFebruar[Versandkosten]-UmsätzeFebruar[Versandgebühren] -> -0.70 € | N5: =UmsätzeFebruar[Verkäufe Gewinn/Verlust]+UmsätzeFebruar[Versand Gewinn/Verlust] -> -0.70 €
A6: Gesamt Gewinn/Verlust | C6: TS023 | D6: Artikel 4 | E6: 22.00 € | F6: 18.00 € | G6: 3.00 € | H6: 1.50 € | J6: 7.00 € | K6: 10.00 € | L6: =IFERROR(UmsätzeFebruar[Verkaufspreis]-(UmsätzeFebruar[Kaufpreis]+UmsätzeFebruar[Onlinegebühren]+UmsätzeFebruar[PayPal-Gebühren]+UmsätzeFebruar[Kreditkartengebühren]),"") -> -8.50 € | M6: =UmsätzeFebruar[Versandkosten]-UmsätzeFebruar[Versandgebühren] -> -3.00 € | N6: =UmsätzeFebruar[Verkäufe Gewinn/Verlust]+UmsätzeFebruar[Versand Gewinn/Verlust] -> -11.50 €
A7: =UmsätzeFebruar[[#Totals],[Gesamt Gewinn/Verlust]] -> 224.60 € | C7: TS024 | D7: Artikel 5 | E7: 10.00 € | F7: 12.00 € | G7: 2.00 € | H7: 1.50 € | J7: 14.00 € | K7: 7.00 € | L7: =IFERROR(UmsätzeFebruar[Verkaufspreis]-(UmsätzeFebruar[Kaufpreis]+UmsätzeFebruar[Onlinegebühren]+UmsätzeFebruar[PayPal-Gebühren]+UmsätzeFebruar[Kreditkartengebühren]),"") -> -1.50 € | M7: =UmsätzeFebruar[Versandkosten]-UmsätzeFebruar[Versandgebühren] -> 7.00 € | N7: =UmsätzeFebruar[Verkäufe Gewinn/Verlust]+UmsätzeFebruar[Versand Gewinn/Verlust] -> 5.50 €
C8: Summe | D8: ="Verkaufte Artikel: "&SUBTOTAL(103,UmsätzeFebruar[Artikelbeschreibung]) -> Verkaufte Artikel: 5 | E8: =SUBTOTAL(109,UmsätzeFebruar[Kaufpreis]) -> 77.00 € | F8: =SUBTOTAL(109,UmsätzeFebruar[Verkaufspreis]) -> 312.00 € | G8: =SUBTOTAL(109,UmsätzeFebruar[Onlinegebühren]) -> 13.00 € | H8: =SUBTOTAL(109,UmsätzeFebruar[PayPal-Gebühren]) -> 4.50 € | I8: =SUBTOTAL(109,UmsätzeFebruar[Kreditkartengebühren]) -> 5.20 € | J8: =SUBTOTAL(109,UmsätzeFebruar[Versandkosten]) -> 48.50 € | K8: =SUBTOTAL(109,UmsätzeFebruar[Versandgebühren]) -> 36.20 € | L8: =SUBTOTAL(109,UmsätzeFebruar[Verkäufe Gewinn/Verlust]) -> 212.30 € | M8: =SUBTOTAL(109,UmsätzeFebruar[Versand Gewinn/Verlust]) -> 12.30 € | N8: =SUBTOTAL(109,UmsätzeFebruar[Gesamt Gewinn/Verlust]) -> 224.60 €
A9: Gewinn/Verlust Trend

Sheet März
A1: MÄRZ
A2: Onlineverkäufe | C2: Auktions-ID | D2: Artikelbeschreibung | E2: Kaufpreis | F2: Verkaufspreis | G2: Onlinegebühren | H2: PayPal-Gebühren | I2: Kreditkartengebühren | J2: Versandkosten | K2: Versandgebühren | L2: Verkäufe Gewinn/Verlust | M2: Versand Gewinn/Verlust | N2: Gesamt Gewinn/Verlust
A3: Jahr | L3: =IFERROR(UmsätzeMärz[Verkaufspreis]-(UmsätzeMärz[Kaufpreis]+UmsätzeMärz[Onlinegebühren]+UmsätzeMärz[PayPal-Gebühren]+UmsätzeMärz[Kreditkartengebühren]),"") -> 0.00 € | M3: =UmsätzeMärz[Versandkosten]-UmsätzeMärz[Versandgebühren] -> 0.00 € | N3: =UmsätzeMärz[Verkäufe Gewinn/Verlust]+UmsätzeMärz[Versand Gewinn/Verlust] -> 0.00 €
A4: =UmsätzeJahr -> 2012 | L4: =IFERROR(UmsätzeMärz[Verkaufspreis]-(UmsätzeMärz[Kaufpreis]+UmsätzeMärz[Onlinegebühren]+UmsätzeMärz[PayPal-Gebühren]+UmsätzeMärz[Kreditkartengebühren]),"") -> 0.00 € | M4: =UmsätzeMärz[Versandkosten]-UmsätzeMärz[Versandgebühren] -> 0.00 € | N4: =UmsätzeMärz[Verkäufe Gewinn/Verlust]+UmsätzeMärz[Versand Gewinn/Verlust] -> 0.00 €
L5: =IFERROR(UmsätzeMärz[Verkaufspreis]-(UmsätzeMärz[Kaufpreis]+UmsätzeMärz[Onlinegebühren]+UmsätzeMärz[PayPal-Gebühren]+UmsätzeMärz[Kreditkartengebühren]),"") -> 0.00 € | M5: =UmsätzeMärz[Versandkosten]-UmsätzeMärz[Versandgebühren] -> 0.00 € | N5: =UmsätzeMärz[Verkäufe Gewinn/Verlust]+UmsätzeMärz[Versand Gewinn/Verlust] -> 0.00 €
A6: Gesamt Gewinn/Verlust | L6: =IFERROR(UmsätzeMärz[Verkaufspreis]-(UmsätzeMärz[Kaufpreis]+UmsätzeMärz[Onlinegebühren]+UmsätzeMärz[PayPal-Gebühren]+UmsätzeMärz[Kreditkartengebühren]),"") -> 0.00 € | M6: =UmsätzeMärz[Versandkosten]-UmsätzeMärz[Versandgebühren] -> 0.00 € | N6: =UmsätzeMärz[Verkäufe Gewinn/Verlust]+UmsätzeMärz[Versand Gewinn/Verlust] -> 0.00 €
A7: =UmsätzeMärz[[#Totals],[Gesamt Gewinn/Verlust]] -> 0.00 € | L7: =IFERROR(UmsätzeMärz[Verkaufspreis]-(UmsätzeMärz[Kaufpreis]+UmsätzeMärz[Onlinegebühren]+UmsätzeMärz[PayPal-Gebühren]+UmsätzeMärz[Kreditkartengebühren]),"") -> 0.00 € | M7: =UmsätzeMärz[Versandkosten]-UmsätzeMärz[Versandgebühren] -> 0.00 € | N7: =UmsätzeMärz[Verkäufe Gewinn/Verlust]+UmsätzeMärz[Versand Gewinn/Verlust] -> 0.00 €
C8: Summe | D8: ="Verkaufte Artikel: "&SUBTOTAL(103,UmsätzeMärz[Artikelbeschreibung]) -> Verkaufte Artikel: 0 | E8: =SUBTOTAL(109,UmsätzeMärz[Kaufpreis]) -> 0.00 € | F8: =SUBTOTAL(109,UmsätzeMärz[Verkaufspreis]) -> 0.00 € | G8: =SUBTOTAL(109,UmsätzeMärz[Onlinegebühren]) -> 0.00 € | H8: =SUBTOTAL(109,UmsätzeMärz[PayPal-Gebühren]) -> 0.00 € | I8: =SUBTOTAL(109,UmsätzeMärz[Kreditkartengebühren]) -> 0.00 € | J8: =SUBTOTAL(109,UmsätzeMärz[Versandkosten]) -> 0.00 € | K8: =SUBTOTAL(109,UmsätzeMärz[Versandgebühren]) -> 0.00 € | L8: =SUBTOTAL(109,UmsätzeMärz[Verkäufe Gewinn/Verlust]) -> 0.00 € | M8: =SUBTOTAL(109,UmsätzeMärz[Versand Gewinn/Verlust]) -> 0.00 € | N8: =SUBTOTAL(109,UmsätzeMärz[Gesamt Gewinn/Verlust]) -> 0.00 €
A9: Gewinn/Verlust Trend

Sheet April
A1: APRIL
A2: Onlineverkäufe | C2: Auktions-ID | D2: Artikelbeschreibung | E2: Kaufpreis | F2: Verkaufspreis | G2: Onlinegebühren | H2: PayPal-Gebühren | I2: Kreditkartengebühren | J2: Versandkosten | K2: Versandgebühren | L2: Verkäufe Gewinn/Verlust | M2: Versand Gewinn/Verlust | N2: Gesamt Gewinn/Verlust
A3: Jahr | M3: =UmsätzeApril[Versandkosten]-UmsätzeApril[Versandgebühren] -> 0.00 € | N3: =UmsätzeApril[Verkäufe Gewinn/Verlust]+UmsätzeApril[Versand Gewinn/Verlust] -> 0.00 €
A4: =UmsätzeJahr -> 2012 | M4: =UmsätzeApril[Versandkosten]-UmsätzeApril[Versandgebühren] -> 0.00 € | N4: =UmsätzeApril[Verkäufe Gewinn/Verlust]+UmsätzeApril[Versand Gewinn/Verlust] -> 0.00 €
M5: =UmsätzeApril[Versandkosten]-UmsätzeApril[Versandgebühren] -> 0.00 € | N5: =UmsätzeApril[Verkäufe Gewinn/Verlust]+UmsätzeApril[Versand Gewinn/Verlust] -> 0.00 €
A6: Gesamt Gewinn/Verlust | M6: =UmsätzeApril[Versandkosten]-UmsätzeApril[Versandgebühren] -> 0.00 € | N6: =UmsätzeApril[Verkäufe Gewinn/Verlust]+UmsätzeApril[Versand Gewinn/Verlust] -> 0.00 €
A7: =UmsätzeApril[[#Totals],[Gesamt Gewinn/Verlust]] -> 0.00 € | M7: =UmsätzeApril[Versandkosten]-UmsätzeApril[Versandgebühren] -> 0.00 € | N7: =UmsätzeApril[Verkäufe Gewinn/Verlust]+UmsätzeApril[Versand Gewinn/Verlust] -> 0.00 €
C8: Gesamt | D8: ="Verkaufte Artikel: "&SUBTOTAL(103,UmsätzeApril[Artikelbeschreibung]) -> Verkaufte Artikel: 0 | E8: =SUBTOTAL(109,UmsätzeApril[Kaufpreis]) -> 0.00 € | F8: =SUBTOTAL(109,UmsätzeApril[Verkaufspreis]) -> 0.00 € | G8: =SUBTOTAL(109,UmsätzeApril[Onlinegebühren]) -> 0.00 € | H8: =SUBTOTAL(109,UmsätzeApril[PayPal-Gebühren]) -> 0.00 € | I8: =SUBTOTAL(109,UmsätzeApril[Kreditkartengebühren]) -> 0.00 € | J8: =SUBTOTAL(109,UmsätzeApril[Versandkosten]) -> 0.00 € | K8: =SUBTOTAL(109,UmsätzeApril[Versandgebühren]) -> 0.00 € | L8: =SUBTOTAL(109,UmsätzeApril[Verkäufe Gewinn/Verlust]) -> 0.00 € | M8: =SUBTOTAL(109,UmsätzeApril[Versand Gewinn/Verlust]) -> 0.00 € | N8: =SUBTOTAL(109,UmsätzeApril[Gesamt Gewinn/Verlust]) -> 0.00 €
A9: Gewinn/Verlust Trend

Sheet Mai
A1: MAI
A2: Onlineverkäufe | C2: Auktions-ID | D2: Artikelbeschreibung | E2: Kaufpreis | F2: Verkaufspreis | G2: Onlinegebühren | H2: PayPal-Gebühren | I2: Kreditkartengebühren | J2: Versandkosten | K2: Versandgebühren | L2: Verkäufe Gewinn/Verlust | M2: Versand Gewinn/Verlust | N2: Gesamt Gewinn/Verlust
A3: Jahr | M3: =UmsätzeMai[Versandkosten]-UmsätzeMai[Versandgebühren] -> 0.00 € | N3: =UmsätzeMai[Verkäufe Gewinn/Verlust]+UmsätzeMai[Versand Gewinn/Verlust] -> 0.00 €
A4: =UmsätzeJahr -> 2012 | M4: =UmsätzeMai[Versandkosten]-UmsätzeMai[Versandgebühren] -> 0.00 € | N4: =UmsätzeMai[Verkäufe Gewinn/Verlust]+UmsätzeMai[Versand Gewinn/Verlust] -> 0.00 €
M5: =UmsätzeMai[Versandkosten]-UmsätzeMai[Versandgebühren] -> 0.00 € | N5: =UmsätzeMai[Verkäufe Gewinn/Verlust]+UmsätzeMai[Versand Gewinn/Verlust] -> 0.00 €
A6: Gesamt Gewinn/Verlust | M6: =UmsätzeMai[Versandkosten]-UmsätzeMai[Versandgebühren] -> 0.00 € | N6: =UmsätzeMai[Verkäufe Gewinn/Verlust]+UmsätzeMai[Versand Gewinn/Verlust] -> 0.00 €
A7: =UmsätzeMai[[#Totals],[Gesamt Gewinn/Verlust]] -> 0.00 € | M7: =UmsätzeMai[Versandkosten]-UmsätzeMai[Versandgebühren] -> 0.00 € | N7: =UmsätzeMai[Verkäufe Gewinn/Verlust]+UmsätzeMai[Versand Gewinn/Verlust] -> 0.00 €
C8: Gesamt | D8: ="Verkaufte Artikel: "&SUBTOTAL(103,UmsätzeMai[Artikelbeschreibung]) -> Verkaufte Artikel: 0 | E8: =SUBTOTAL(109,UmsätzeMai[Kaufpreis]) -> 0.00 € | F8: =SUBTOTAL(109,UmsätzeMai[Verkaufspreis]) -> 0.00 € | G8: =SUBTOTAL(109,UmsätzeMai[Onlinegebühren]) -> 0.00 € | H8: =SUBTOTAL(109,UmsätzeMai[PayPal-Gebühren]) -> 0.00 € | I8: =SUBTOTAL(109,UmsätzeMai[Kreditkartengebühren]) -> 0.00 € | J8: =SUBTOTAL(109,UmsätzeMai[Versandkosten]) -> 0.00 € | K8: =SUBTOTAL(109,UmsätzeMai[Versandgebühren]) -> 0.00 € | L8: =SUBTOTAL(109,UmsätzeMai[Verkäufe Gewinn/Verlust]) -> 0.00 € | M8: =SUBTOTAL(109,UmsätzeMai[Versand Gewinn/Verlust]) -> 0.00 € | N8: =SUBTOTAL(109,UmsätzeMai[Gesamt Gewinn/Verlust]) -> 0.00 €
A9: Gewinn/Verlust Trend

Sheet Juni
A1: JUNI
A2: Onlineverkäufe | C2: Auktions-ID | D2: Artikelbeschreibung | E2: Kaufpreis | F2: Verkaufspreis | G2: Onlinegebühren | H2: PayPal-Gebühren | I2: Kreditkartengebühren | J2: Versandkosten | K2: Versandgebühren | L2: Verkäufe Gewinn/Verlust | M2: Versand Gewinn/Verlust | N2: Gesamt Gewinn/Verlust
A3: Jahr | M3: =UmsätzeJuni[Versandkosten]-UmsätzeJuni[Versandgebühren] -> 0.00 € | N3: =UmsätzeJuni[Verkäufe Gewinn/Verlust]+UmsätzeJuni[Versand Gewinn/Verlust] -> 0.00 €
A4: =UmsätzeJahr -> 2012 | M4: =UmsätzeJuni[Versandkosten]-UmsätzeJuni[Versandgebühren] -> 0.00 € | N4: =UmsätzeJuni[Verkäufe Gewinn/Verlust]+UmsätzeJuni[Versand Gewinn/Verlust] -> 0.00 €
M5: =UmsätzeJuni[Versandkosten]-UmsätzeJuni[Versandgebühren] -> 0.00 € | N5: =UmsätzeJuni[Verkäufe Gewinn/Verlust]+UmsätzeJuni[Versand Gewinn/Verlust] -> 0.00 €
A6: Gesamt Gewinn/Verlust | M6: =UmsätzeJuni[Versandkosten]-UmsätzeJuni[Versandgebühren] -> 0.00 € | N6: =UmsätzeJuni[Verkäufe Gewinn/Verlust]+UmsätzeJuni[Versand Gewinn/Verlust] -> 0.00 €
A7: =UmsätzeJuni[[#Totals],[Gesamt Gewinn/Verlust]] -> 0.00 € | M7: =UmsätzeJuni[Versandkosten]-UmsätzeJuni[Versandgebühren] -> 0.00 € | N7: =UmsätzeJuni[Verkäufe Gewinn/Verlust]+UmsätzeJuni[Versand Gewinn/Verlust] -> 0.00 €
C8: Summe | D8: ="Verkaufte Artikel:"&SUBTOTAL(103,UmsätzeJuni[Artikelbeschreibung]) -> Verkaufte Artikel:0 | E8: =SUBTOTAL(109,UmsätzeJuni[Kaufpreis]) -> 0.00 € | F8: =SUBTOTAL(109,UmsätzeJuni[Verkaufspreis]) -> 0.00 € | G8: =SUBTOTAL(109,UmsätzeJuni[Onlinegebühren]) -> 0.00 € | H8: =SUBTOTAL(109,UmsätzeJuni[PayPal-Gebühren]) -> 0.00 € | I8: =SUBTOTAL(109,UmsätzeJuni[Kreditkartengebühren]) -> 0.00 € | J8: =SUBTOTAL(109,UmsätzeJuni[Versandkosten]) -> 0.00 € | K8: =SUBTOTAL(109,UmsätzeJuni[Versandgebühren]) -> 0.00 € | L8: =SUBTOTAL(109,UmsätzeJuni[Verkäufe Gewinn/Verlust]) -> 0.00 € | M8: =SUBTOTAL(109,UmsätzeJuni[Versand Gewinn/Verlust]) -> 0.00 € | N8: =SUBTOTAL(109,UmsätzeJuni[Gesamt Gewinn/Verlust]) -> 0.00 €
A9: Gewinn/Verlust Trend

Sheet Juli
A1: JULI
A2: Onlineverkäufe | C2: Auktions-ID | D2: Artikelbeschreibung | E2: Kaufpreis | F2: Verkaufspreis | G2: Onlinegebühren | H2: PayPal-Gebühren | I2: Kreditkartengebühren | J2: Versandkosten | K2: Versandgebühren | L2: Verkäufe Gewinn/Verlust | M2: Versand Gewinn/Verlust | N2: Gesamt Gewinn/Verlust
A3: Jahr | M3: =UmsätzeJuli[Versandkosten]-UmsätzeJuli[Versandgebühren] -> 0.00 € | N3: =UmsätzeJuli[Verkäufe Gewinn/Verlust]+UmsätzeJuli[Versand Gewinn/Verlust] -> 0.00 €
A4: =UmsätzeJahr -> 2012 | M4: =UmsätzeJuli[Versandkosten]-UmsätzeJuli[Versandgebühren] -> 0.00 € | N4: =UmsätzeJuli[Verkäufe Gewinn/Verlust]+UmsätzeJuli[Versand Gewinn/Verlust] -> 0.00 €
M5: =UmsätzeJuli[Versandkosten]-UmsätzeJuli[Versandgebühren] -> 0.00 € | N5: =UmsätzeJuli[Verkäufe Gewinn/Verlust]+UmsätzeJuli[Versand Gewinn/Verlust] -> 0.00 €
A6: Gesamt Gewinn/Verlust | M6: =UmsätzeJuli[Versandkosten]-UmsätzeJuli[Versandgebühren] -> 0.00 € | N6: =UmsätzeJuli[Verkäufe Gewinn/Verlust]+UmsätzeJuli[Versand Gewinn/Verlust] -> 0.00 €
A7: =UmsätzeJuli[[#Totals],[Gesamt Gewinn/Verlust]] -> 0.00 € | M7: =UmsätzeJuli[Versandkosten]-UmsätzeJuli[Versandgebühren] -> 0.00 € | N7: =UmsätzeJuli[Verkäufe Gewinn/Verlust]+UmsätzeJuli[Versand Gewinn/Verlust] -> 0.00 €
C8: Summe | D8: ="Verkaufte Artikel:"&SUBTOTAL(103,UmsätzeJuli[Artikelbeschreibung]) -> Verkaufte Artikel:0 | E8: =SUBTOTAL(109,UmsätzeJuli[Kaufpreis]) -> 0.00 € | F8: =SUBTOTAL(109,UmsätzeJuli[Verkaufspreis]) -> 0.00 € | G8: =SUBTOTAL(109,UmsätzeJuli[Onlinegebühren]) -> 0.00 € | H8: =SUBTOTAL(109,UmsätzeJuli[PayPal-Gebühren]) -> 0.00 € | I8: =SUBTOTAL(109,UmsätzeJuli[Kreditkartengebühren]) -> 0.00 € | J8: =SUBTOTAL(109,UmsätzeJuli[Versandkosten]) -> 0.00 € | K8: =SUBTOTAL(109,UmsätzeJuli[Versandgebühren]) -> 0.00 € | L8: =SUBTOTAL(109,UmsätzeJuli[Verkäufe Gewinn/Verlust]) -> 0.00 € | M8: =SUBTOTAL(109,UmsätzeJuli[Versand Gewinn/Verlust]) -> 0.00 € | N8: =SUBTOTAL(109,UmsätzeJuli[Gesamt Gewinn/Verlust]) -> 0.00 €
A9: Gewinn/Verlust Trend

Sheet August
A1: AUGUST
A2: Onlineverkäufe | C2: Auktions-ID | D2: Artikelbeschreibung | E2: Kaufpreis | F2: Verkaufspreis | G2: Onlinegebühren | H2: PayPal-Gebühren | I2: Kreditkartengebühren | J2: Versandkosten | K2: Versandgebühren | L2: Verkäufe Gewinn/Verlust | M2: Versand Gewinn/Verlust | N2: Gesamt Gewinn/Verlust
A3: Jahr | M3: =UmsätzeAugust[Versandkosten]-UmsätzeAugust[Versandgebühren] -> 0.00 € | N3: =UmsätzeAugust[Verkäufe Gewinn/Verlust]+UmsätzeAugust[Versand Gewinn/Verlust] -> 0.00 €
A4: =UmsätzeJahr -> 2012 | M4: =UmsätzeAugust[Versandkosten]-UmsätzeAugust[Versandgebühren] -> 0.00 € | N4: =UmsätzeAugust[Verkäufe Gewinn/Verlust]+UmsätzeAugust[Versand Gewinn/Verlust] -> 0.00 €
M5: =UmsätzeAugust[Versandkosten]-UmsätzeAugust[Versandgebühren] -> 0.00 € | N5: =UmsätzeAugust[Verkäufe Gewinn/Verlust]+UmsätzeAugust[Versand Gewinn/Verlust] -> 0.00 €
A6: Gesamt Gewinn/Verlust | M6: =UmsätzeAugust[Versandkosten]-UmsätzeAugust[Versandgebühren] -> 0.00 € | N6: =UmsätzeAugust[Verkäufe Gewinn/Verlust]+UmsätzeAugust[Versand Gewinn/Verlust] -> 0.00 €
A7: =UmsätzeAugust[[#Totals],[Gesamt Gewinn/Verlust]] -> 0.00 € | M7: =UmsätzeAugust[Versandkosten]-UmsätzeAugust[Versandgebühren] -> 0.00 € | N7: =UmsätzeAugust[Verkäufe Gewinn/Verlust]+UmsätzeAugust[Versand Gewinn/Verlust] -> 0.00 €
C8: Summe | D8: ="Verkaufte Artikel:"&SUBTOTAL(103,UmsätzeAugust[Artikelbeschreibung]) -> Verkaufte Artikel:0 | E8: =SUBTOTAL(109,UmsätzeAugust[Kaufpreis]) -> 0.00 € | F8: =SUBTOTAL(109,UmsätzeAugust[Verkaufspreis]) -> 0.00 € | G8: =SUBTOTAL(109,UmsätzeAugust[Onlinegebühren]) -> 0.00 € | H8: =SUBTOTAL(109,UmsätzeAugust[PayPal-Gebühren]) -> 0.00 € | I8: =SUBTOTAL(109,UmsätzeAugust[Kreditkartengebühren]) -> 0.00 € | J8: =SUBTOTAL(109,UmsätzeAugust[Versandkosten]) -> 0.00 € | K8: =SUBTOTAL(109,UmsätzeAugust[Versandgebühren]) -> 0.00 € | L8: =SUBTOTAL(109,UmsätzeAugust[Verkäufe Gewinn/Verlust]) -> 0.00 € | M8: =SUBTOTAL(109,UmsätzeAugust[Versand Gewinn/Verlust]) -> 0.00 € | N8: =SUBTOTAL(109,UmsätzeAugust[Gesamt Gewinn/Verlust]) -> 0.00 €
A9: Gewinn/Verlust Trend

Sheet September
A1: SEPTEMBER
A2: Onlineverkäufe | C2: Auktions-ID | D2: Artikelbeschreibung | E2: Kaufpreis | F2: Verkaufspreis | G2: Onlinegebühren | H2: PayPal-Gebühren | I2: Kreditkartengebühren | J2: Versandkosten | K2: Versandgebühren | L2: Verkäufe Gewinn/Verlust | M2: Versand Gewinn/Verlust | N2: Gesamt Gewinn/Verlust
A3: Jahr | M3: =UmsätzeSeptember[Versandkosten]-UmsätzeSeptember[Versandgebühren] -> 0.00 € | N3: =UmsätzeSeptember[Verkäufe Gewinn/Verlust]+UmsätzeSeptember[Versand Gewinn/Verlust] -> 0.00 €
A4: =UmsätzeJahr -> 2012 | M4: =UmsätzeSeptember[Versandkosten]-UmsätzeSeptember[Versandgebühren] -> 0.00 € | N4: =UmsätzeSeptember[Verkäufe Gewinn/Verlust]+UmsätzeSeptember[Versand Gewinn/Verlust] -> 0.00 €
M5: =UmsätzeSeptember[Versandkosten]-UmsätzeSeptember[Versandgebühren] -> 0.00 € | N5: =UmsätzeSeptember[Verkäufe Gewinn/Verlust]+UmsätzeSeptember[Versand Gewinn/Verlust] -> 0.00 €
A6: Gesamt Gewinn/Verlust | M6: =UmsätzeSeptember[Versandkosten]-UmsätzeSeptember[Versandgebühren] -> 0.00 € | N6: =UmsätzeSeptember[Verkäufe Gewinn/Verlust]+UmsätzeSeptember[Versand Gewinn/Verlust] -> 0.00 €
A7: =UmsätzeSeptember[[#Totals],[Gesamt Gewinn/Verlust]] -> 0.00 € | M7: =UmsätzeSeptember[Versandkosten]-UmsätzeSeptember[Versandgebühren] -> 0.00 € | N7: =UmsätzeSeptember[Verkäufe Gewinn/Verlust]+UmsätzeSeptember[Versand Gewinn/Verlust] -> 0.00 €
C8: Summe | D8: ="Verkaufte Artikel: "&SUBTOTAL(103,UmsätzeSeptember[Artikelbeschreibung]) -> Verkaufte Artikel: 0 | E8: =SUBTOTAL(109,UmsätzeSeptember[Kaufpreis]) -> 0.00 € | F8: =SUBTOTAL(109,UmsätzeSeptember[Verkaufspreis]) -> 0.00 € | G8: =SUBTOTAL(109,UmsätzeSeptember[Onlinegebühren]) -> 0.00 € | H8: =SUBTOTAL(109,UmsätzeSeptember[PayPal-Gebühren]) -> 0.00 € | I8: =SUBTOTAL(109,UmsätzeSeptember[Kreditkartengebühren]) -> 0.00 € | J8: =SUBTOTAL(109,UmsätzeSeptember[Versandkosten]) -> 0.00 € | K8: =SUBTOTAL(109,UmsätzeSeptember[Versandgebühren]) -> 0.00 € | L8: =SUBTOTAL(109,UmsätzeSeptember[Verkäufe Gewinn/Verlust]) -> 0.00 € | M8: =SUBTOTAL(109,UmsätzeSeptember[Versand Gewinn/Verlust]) -> 0.00 € | N8: =SUBTOTAL(109,UmsätzeSeptember[Gesamt Gewinn/Verlust]) -> 0.00 €
A9: Gewinn/Verlust Trend

Sheet Oktober
A1: OKTOBER
A2: Onlineverkäufe | C2: Auktions-ID | D2: Artikelbeschreibung | E2: Kaufpreis | F2: Verkaufspreis | G2: Onlinegebühren | H2: PayPal-Gebühren | I2: Kreditkartengebühren | J2: Versandkosten | K2: Versandgebühren | L2: Verkäufe Gewinn/Verlust | M2: Versand Gewinn/Verlust | N2: Gesamt Gewinn/Verlust
A3: Jahr | M3: =UmsätzeOktober[Versandkosten]-UmsätzeOktober[Versandgebühren] -> 0.00 € | N3: =UmsätzeOktober[Verkäufe Gewinn/Verlust]+UmsätzeOktober[Versand Gewinn/Verlust] -> 0.00 €
A4: =UmsätzeJahr -> 2012 | M4: =UmsätzeOktober[Versandkosten]-UmsätzeOktober[Versandgebühren] -> 0.00 € | N4: =UmsätzeOktober[Verkäufe Gewinn/Verlust]+UmsätzeOktober[Versand Gewinn/Verlust] -> 0.00 €
M5: =UmsätzeOktober[Versandkosten]-UmsätzeOktober[Versandgebühren] -> 0.00 € | N5: =UmsätzeOktober[Verkäufe Gewinn/Verlust]+UmsätzeOktober[Versand Gewinn/Verlust] -> 0.00 €
A6: Gesamt Gewinn/Verlust | M6: =UmsätzeOktober[Versandkosten]-UmsätzeOktober[Versandgebühren] -> 0.00 € | N6: =UmsätzeOktober[Verkäufe Gewinn/Verlust]+UmsätzeOktober[Versand Gewinn/Verlust] -> 0.00 €
A7: =UmsätzeOktober[[#Totals],[Gesamt Gewinn/Verlust]] -> 0.00 € | M7: =UmsätzeOktober[Versandkosten]-UmsätzeOktober[Versandgebühren] -> 0.00 € | N7: =UmsätzeOktober[Verkäufe Gewinn/Verlust]+UmsätzeOktober[Versand Gewinn/Verlust] -> 0.00 €
C8: Summe | D8: ="Verkaufte Artikel: "&SUBTOTAL(103,UmsätzeOktober[Artikelbeschreibung]) -> Verkaufte Artikel: 0 | E8: =SUBTOTAL(109,UmsätzeOktober[Kaufpreis]) -> 0.00 € | F8: =SUBTOTAL(109,UmsätzeOktober[Verkaufspreis]) -> 0.00 € | G8: =SUBTOTAL(109,UmsätzeOktober[Onlinegebühren]) -> 0.00 € | H8: =SUBTOTAL(109,UmsätzeOktober[PayPal-Gebühren]) -> 0.00 € | I8: =SUBTOTAL(109,UmsätzeOktober[Kreditkartengebühren]) -> 0.00 € | J8: =SUBTOTAL(109,UmsätzeOktober[Versandkosten]) -> 0.00 € | K8: =SUBTOTAL(109,UmsätzeOktober[Versandgebühren]) -> 0.00 € | L8: =SUBTOTAL(109,UmsätzeOktober[Verkäufe Gewinn/Verlust]) -> 0.00 € | M8: =SUBTOTAL(109,UmsätzeOktober[Versand Gewinn/Verlust]) -> 0.00 € | N8: =SUBTOTAL(109,UmsätzeOktober[Gesamt Gewinn/Verlust]) -> 0.00 €
A9: Gewinn/Verlust Trend

Sheet November
A1: NOVEMBER
A2: Onlineverkäufe | C2: Auktions-ID | D2: Artikelbeschreibung | E2: Kaufpreis | F2: Verkaufspreis | G2: Onlinegebühren | H2: PayPal-Gebühren | I2: Kreditkartengebühren | J2: Versandkosten | K2: Versandgebühren | L2: Verkäufe Gewinn/Verlust | M2: Versand Gewinn/Verlust | N2: Gesamt Gewinn/Verlust
A3: Jahr | M3: =UmsätzeNovember[Versandkosten]-UmsätzeNovember[Versandgebühren] -> 0.00 € | N3: =UmsätzeNovember[Verkäufe Gewinn/Verlust]+UmsätzeNovember[Versand Gewinn/Verlust] -> 0.00 €
A4: =UmsätzeJahr -> 2012 | M4: =UmsätzeNovember[Versandkosten]-UmsätzeNovember[Versandgebühren] -> 0.00 € | N4: =UmsätzeNovember[Verkäufe Gewinn/Verlust]+UmsätzeNovember[Versand Gewinn/Verlust] -> 0.00 €
M5: =UmsätzeNovember[Versandkosten]-UmsätzeNovember[Versandgebühren] -> 0.00 € | N5: =UmsätzeNovember[Verkäufe Gewinn/Verlust]+UmsätzeNovember[Versand Gewinn/Verlust] -> 0.00 €
A6: Gesamt Gewinn/Verlust | M6: =UmsätzeNovember[Versandkosten]-UmsätzeNovember[Versandgebühren] -> 0.00 € | N6: =UmsätzeNovember[Verkäufe Gewinn/Verlust]+UmsätzeNovember[Versand Gewinn/Verlust] -> 0.00 €
A7: =UmsätzeNovember[[#Totals],[Gesamt Gewinn/Verlust]] -> 0.00 € | M7: =UmsätzeNovember[Versandkosten]-UmsätzeNovember[Versandgebühren] -> 0.00 € | N7: =UmsätzeNovember[Verkäufe Gewinn/Verlust]+UmsätzeNovember[Versand Gewinn/Verlust] -> 0.00 €
C8: Summe | D8: ="Verkaufte Artikel: "&SUBTOTAL(103,UmsätzeNovember[Artikelbeschreibung]) -> Verkaufte Artikel: 0 | E8: =SUBTOTAL(109,UmsätzeNovember[Kaufpreis]) -> 0.00 € | F8: =SUBTOTAL(109,UmsätzeNovember[Verkaufspreis]) -> 0.00 € | G8: =SUBTOTAL(109,UmsätzeNovember[Onlinegebühren]) -> 0.00 € | H8: =SUBTOTAL(109,UmsätzeNovember[PayPal-Gebühren]) -> 0.00 € | I8: =SUBTOTAL(109,UmsätzeNovember[Kreditkartengebühren]) -> 0.00 € | J8: =SUBTOTAL(109,UmsätzeNovember[Versandkosten]) -> 0.00 € | K8: =SUBTOTAL(109,UmsätzeNovember[Versandgebühren]) -> 0.00 € | L8: =SUBTOTAL(109,UmsätzeNovember[Verkäufe Gewinn/Verlust]) -> 0.00 € | M8: =SUBTOTAL(109,UmsätzeNovember[Versand Gewinn/Verlust]) -> 0.00 € | N8: =SUBTOTAL(109,UmsätzeNovember[Gesamt Gewinn/Verlust]) -> 0.00 €
A9: Gewinn/Verlust Trend

Sheet Dezember
A1: DEZEMBER
A2: Onlineverkäufe | C2: Auktions-ID | D2: Artikelbeschreibung | E2: Kaufpreis | F2: Verkaufspreis | G2: Onlinegebühren | H2: PayPal-Gebühren | I2: Kreditkartengebühren | J2: Versandkosten | K2: Versandgebühren | L2: Verkäufe Gewinn/Verlust | M2: Versand Gewinn/Verlust | N2: Gesamt Gewinn/Verlust
A3: Jahr | M3: =UmsätzeDezember[Versandkosten]-UmsätzeDezember[Versandgebühren] -> 0.00 € | N3: =UmsätzeDezember[Verkäufe Gewinn/Verlust]+UmsätzeDezember[Versand Gewinn/Verlust] -> 0.00 €
A4: =UmsätzeJahr -> 2012 | M4: =UmsätzeDezember[Versandkosten]-UmsätzeDezember[Versandgebühren] -> 0.00 € | N4: =UmsätzeDezember[Verkäufe Gewinn/Verlust]+UmsätzeDezember[Versand Gewinn/Verlust] -> 0.00 €
M5: =UmsätzeDezember[Versandkosten]-UmsätzeDezember[Versandgebühren] -> 0.00 € | N5: =UmsätzeDezember[Verkäufe Gewinn/Verlust]+UmsätzeDezember[Versand Gewinn/Verlust] -> 0.00 €
A6: Gesamt Gewinn/Verlust | M6: =UmsätzeDezember[Versandkosten]-UmsätzeDezember[Versandgebühren] -> 0.00 € | N6: =UmsätzeDezember[Verkäufe Gewinn/Verlust]+UmsätzeDezember[Versand Gewinn/Verlust] -> 0.00 €
A7: =UmsätzeDezember[[#Totals],[Gesamt Gewinn/Verlust]] -> 0.00 € | M7: =UmsätzeDezember[Versandkosten]-UmsätzeDezember[Versandgebühren] -> 0.00 € | N7: =UmsätzeDezember[Verkäufe Gewinn/Verlust]+UmsätzeDezember[Versand Gewinn/Verlust] -> 0.00 €
C8: Summe | D8: ="Verkaufte Artikel:"&SUBTOTAL(103,UmsätzeDezember[Artikelbeschreibung]) -> Verkaufte Artikel:0 | E8: =SUBTOTAL(109,UmsätzeDezember[Kaufpreis]) -> 0.00 € | F8: =SUBTOTAL(109,UmsätzeDezember[Verkaufspreis]) -> 0.00 € | G8: =SUBTOTAL(109,UmsätzeDezember[Onlinegebühren]) -> 0.00 € | H8: =SUBTOTAL(109,UmsätzeDezember[PayPal-Gebühren]) -> 0.00 € | I8: =SUBTOTAL(109,UmsätzeDezember[Kreditkartengebühren]) -> 0.00 € | J8: =SUBTOTAL(109,UmsätzeDezember[Versandkosten]) -> 0.00 € | K8: =SUBTOTAL(109,UmsätzeDezember[Versandgebühren]) -> 0.00 € | L8: =SUBTOTAL(109,UmsätzeDezember[Verkäufe Gewinn/Verlust]) -> 0.00 € | M8: =SUBTOTAL(109,UmsätzeDezember[Versand Gewinn/Verlust]) -> 0.00 € | N8: =SUBTOTAL(109,UmsätzeDezember[Gesamt Gewinn/Verlust]) -> 0.00 €
A9: Gewinn/Verlust Trend

Sheet Zusammenfassung Jahr bis heute
A1: Jahr bis heute
A2: Zusammenfassung | C2: Gewinn/Verlust | H2: Jahr bis heute – Gewinn/Verlust
A3: Jahr | H3: Monat | I3: Verkäufe Gewinn/Verlust | J3: Versand Gewinn/Verlust | K3: Gesamt Gewinn/Verlust
A4: =UmsätzeJahr -> 2012 | H4: Januar | I4: =UmsätzeJanuar[[#Totals],[Verkäufe Gewinn/Verlust]] -> 79.50 € | J4: =UmsätzeJanuar[[#Totals],[Versand Gewinn/Verlust]] -> 9.50 € | K4: =UmsätzeJanuar[[#Totals],[Gesamt Gewinn/Verlust]] -> 89.00 €
H5: Februar | I5: =UmsätzeFebruar[[#Totals],[Verkäufe Gewinn/Verlust]] -> 212.30 € | J5: =UmsätzeFebruar[[#Totals],[Versand Gewinn/Verlust]] -> 12.30 € | K5: =UmsätzeFebruar[[#Totals],[Gesamt Gewinn/Verlust]] -> 224.60 €
A6: Monatlicher Verkaufstrend: | H6: März | I6: =UmsätzeMärz[[#Totals],[Verkäufe Gewinn/Verlust]] -> 0.00 € | J6: =UmsätzeMärz[[#Totals],[Versand Gewinn/Verlust]] -> 0.00 € | K6: =UmsätzeMärz[[#Totals],[Gesamt Gewinn/Verlust]] -> 0.00 €
H7: April | I7: =UmsätzeApril[[#Totals],[Verkäufe Gewinn/Verlust]] -> 0.00 € | J7: =UmsätzeApril[[#Totals],[Versand Gewinn/Verlust]] -> 0.00 € | K7: =UmsätzeApril[[#Totals],[Gesamt Gewinn/Verlust]] -> 0.00 €
H8: Mai | I8: =UmsätzeMai[[#Totals],[Verkäufe Gewinn/Verlust]] -> 0.00 € | J8: =UmsätzeMai[[#Totals],[Versand Gewinn/Verlust]] -> 0.00 € | K8: =UmsätzeMai[[#Totals],[Gesamt Gewinn/Verlust]] -> 0.00 €
H9: Juni | I9: =UmsätzeJuni[[#Totals],[Verkäufe Gewinn/Verlust]] -> 0.00 € | J9: =UmsätzeJuni[[#Totals],[Versand Gewinn/Verlust]] -> 0.00 € | K9: =UmsätzeJuni[[#Totals],[Gesamt Gewinn/Verlust]] -> 0.00 €
H10: Juli | I10: =UmsätzeJuli[[#Totals],[Verkäufe Gewinn/Verlust]] -> 0.00 € | J10: =UmsätzeJuli[[#Totals],[Versand Gewinn/Verlust]] -> 0.00 € | K10: =UmsätzeJuli[[#Totals],[Gesamt Gewinn/Verlust]] -> 0.00 €
H11: August | I11: =UmsätzeAugust[[#Totals],[Verkäufe Gewinn/Verlust]] -> 0.00 € | J11: =UmsätzeAugust[[#Totals],[Versand Gewinn/Verlust]] -> 0.00 € | K11: =UmsätzeAugust[[#Totals],[Gesamt Gewinn/Verlust]] -> 0.00 €
H12: September | I12: =UmsätzeSeptember[[#Totals],[Verkäufe Gewinn/Verlust]] -> 0.00 € | J12: =UmsätzeSeptember[[#Totals],[Versand Gewinn/Verlust]] -> 0.00 € | K12: =UmsätzeSeptember[[#Totals],[Gesamt Gewinn/Verlust]] -> 0.00 €
H13: Oktober | I13: =UmsätzeOktober[[#Totals],[Verkäufe Gewinn/Verlust]] -> 0.00 € | J13: =UmsätzeOktober[[#Totals],[Versand Gewinn/Verlust]] -> 0.00 € | K13: =UmsätzeOktober[[#Totals],[Gesamt Gewinn/Verlust]] -> 0.00 €
H14: November | I14: =UmsätzeNovember[[#Totals],[Verkäufe Gewinn/Verlust]] -> 0.00 € | J14: =UmsätzeNovember[[#Totals],[Versand Gewinn/Verlust]] -> 0.00 € | K14: =UmsätzeNovember[[#Totals],[Gesamt Gewinn/Verlust]] -> 0.00 €
H15: Dezember | I15: =UmsätzeDezember[[#Totals],[Verkäufe Gewinn/Verlust]] -> 0.00 € | J15: =UmsätzeDezember[[#Totals],[Versand Gewinn/Verlust]] -> 0.00 € | K15: =UmsätzeDezember[[#Totals],[Gesamt Gewinn/Verlust]] -> 0.00 €
H16: Summen | I16: =SUBTOTAL(109,ZusammenfassungJahrBisHeute[Verkäufe Gewinn/Verlust]) -> 291.80 € | J16: =SUBTOTAL(109,ZusammenfassungJahrBisHeute[Versand Gewinn/Verlust]) -> 21.80 € | K16: =SUBTOTAL(109,ZusammenfassungJahrBisHeute[Gesamt Gewinn/Verlust]) -> 313.60 €
